bitfinex-derivatives/quotes_ETHF0:USTF0_20250712
["timestamp","ask_amount","ask_price","bid_price","bid_amount"]
[1752338772438,3.23694,2934.8,2934.4,4.91112]
[1752338772439,3.65299892,2934.8,2934.4,4.1698]
[1752338772638,1.6295,2934.2,2934.1,0.6345]
[1752338772944,2.72679892,2934.2,2934.1,2.27789]
[1752338773238,4.33437892,2934.2,2934.1,2.27789]
[1752338774237,4.33437892,2934.2,2933.9,1.5935]
[1752338774238,0.6628,2934.0,2933.9,1.5935]
[1752338774437,2.5557,2934.0,2933.9,2.5555]
[1752338775041,2.5557,2934.0,2933.9,3.23692]
[1752338776038,1.8929,2934.2,2934.1,1.3159]
[1752338776247,2.5557,2934.5,2934.4,1.31583]
[1752338776442,2.5557,2934.5,2934.4,3.23683]
[1752338777245,3.23701,2934.5,2934.4,3.23683]
[1752338777444,2.5557,2934.5,2934.4,3.23683]
[1752338777938,3.23701,2934.5,2934.4,3.23683]
[1752338778141,2.5557,2934.5,2934.4,3.23683]
[1752338778643,3.23701,2934.5,2934.4,3.23683]
[1752338779144,2.5557,2934.5,2934.4,3.23683]
[1752338779645,3.23701,2934.5,2934.4,3.23683]
[1752338780241,2.5557,2934.5,2934.4,3.23683]
[1752338780645,1.6295,2934.5,2934.4,3.23683]
[1752338780846,0.6628,2934.5,2934.4,3.23683]
[1752338781047,1.6295,2934.5,2934.4,3.23683]
[1752338781450,2.5557,2934.5,2934.4,3.23683]
[1752338781642,1.8929,2934.9,2934.6,2.5555]
[1752338781847,2.5557,2934.9,2934.8,3.23674]
[1752338783352,3.23691,2934.9,2934.8,3.23674]
[1752338783545,2.5557,2934.9,2934.8,3.23674]
[1752338783949,3.23691,2934.9,2934.8,3.23674]
[1752338784255,2.31078,2934.8,2934.7,0.6345]
[1752338784448,4.33427892,2934.8,2934.7,0.6345]
[1752338785250,1.64803,2934.5,2934.4,0.6813]
[1752338785450,4.33432892,2934.5,2934.4,1.3158]
[1752338785652,4.33432892,2934.5,2934.4,2.2778]
[1752338785953,3.23703,2934.5,2934.4,2.2778]
[1752338786353,0.68136,2934.4,2934.3,0.68133]
[1752338786554,3.23706,2934.4,2934.3,0.68133]
[1752338787550,1.00590478,2935.4,2934.7,0.959]
[1752338787854,1.00590478,2935.4,2934.3,8.80068892]
[1752338787855,2.5557,2936.0,2935.9,1.63998]
[1752338788056,3.43719815,2936.0,2935.9,4.84778]
[1752338788946,2.47049815,2936.0,2935.9,4.84778]
[1752338789357,0.13922815,2936.0,2935.9,12.03067888]
[1752338789557,2.5557,2936.6,2936.5,1.63733865]
[1752338789753,2.5557,2936.6,2936.5,4.84513865]
[1752338790259,2.5557,2936.8,2936.7,1.6398]
[1752338790653,3.23647,2936.8,2936.7,0.959]
[1752338790856,3.23652,2936.6,2936.5,3.2078]
[1752338791161,0.6628,2936.6,2936.2,4.1668]
[1752338791350,0.6628,2936.4,2936.3,1.63987]
[1752338791553,0.6628,2936.3,2936.2,3.2078]
[1752338791751,3.23659,2936.3,2936.2,3.2078]
[1752338792258,2.5557,2936.3,2936.2,4.84771]
[1752338792457,3.23659,2936.3,2936.2,3.2078]
[1752338792662,2.26996,2936.0,2935.9,3.2078]
[1752338792862,3.23666,2936.0,2935.9,3.2078]
[1752338793965,0.6628,2935.7,2935.6,3.2078]
[1752338794162,3.23678,2935.5,2935.4,4.84789]
[1752338794463,3.23678,2935.5,2935.4,3.2078]
[1752338795159,3.23677,2935.5,2935.4,3.2078]
[1752338795364,3.23677,2935.5,2935.4,4.1668]
[1752338796760,3.23677,2935.5,2935.4,3.2078]
[1752338797766,3.23677,2935.5,2935.4,3.8889]
[1752338799662,3.23677,2935.5,2935.4,3.2078]
[1752338801262,0.68114,2935.2,2935.1,4.85526]
[1752338801458,2.5517,2935.2,2935.1,4.85526]
[1752338804466,3.23284,2935.2,2935.1,4.85526]
[1752338804765,2.5517,2935.2,2935.1,4.85526]
[1752338805168,3.23284,2935.2,2935.1,4.85526]
[1752338805970,3.23284,2935.2,2935.1,3.88896]
[1752338806268,3.23284,2935.2,2935.1,3.2078]
[1752338810268,1.28759,2935.0,2934.9,27.424]
[1752338810473,3.23289,2935.0,2934.9,28.3903]
[1752338810870,3.23289,2935.0,2934.9,4.8553]
[1752338819575,3.23289,2935.0,2934.9,4.1741]
[1752338820974,2.23966,2934.8,2934.7,0.9663]
[1752338821174,2.23966,2934.8,2934.7,24.4483]
[1752338821375,3.23296,2934.8,2934.7,24.4483]
[1752338821978,3.23296,2934.8,2934.7,0.9663]
[1752338822174,2.28096,2934.7,2934.6,27.6561]
[1752338822373,3.23296,2934.7,2934.6,28.33738]
[1752338822878,3.23296,2934.7,2934.6,3.2078]
[1752338825478,3.23296,2934.7,2934.6,4.1741]
[1752338825678,3.23296,2934.7,2934.6,3.2078]
[1752338826881,2.5517,2934.7,2934.6,4.80188]
[1752338827082,1.5584,2934.7,2934.6,4.80188]
[1752338827284,1.5584,2934.7,2934.6,4.80798]
[1752338829286,0.952,2934.7,2934.6,4.80798]
[1752338834490,0.9945,2934.9,2934.8,1.59404]
[1752338834792,0.9945,2934.9,2934.8,26.13630582]
[1752338835290,2.564,2934.9,2934.8,25.04404]
[1752338838394,3.24521,2934.9,2934.8,25.04404]
[1752338839095,3.24521,2934.9,2934.8,0.9128]
[1752338839284,2.564,2934.8,2934.7,0.68124]
[1752338839490,2.564,2934.8,2934.7,1.59404]
[1752338839689,0.68126,2934.7,2934.6,27.31607]
[1752338839892,4.33752582,2934.7,2934.6,26.6348]
[1752338840489,4.33752582,2934.7,2934.6,3.2078]
[1752338840793,4.33752582,2934.7,2934.6,3.88908]
[1752338841394,3.24526,2934.7,2934.6,3.88908]
[1752338842595,3.24526,2934.7,2934.6,4.80188]
[1752338842791,2.564,2934.7,2934.6,4.80188]
[1752338843695,0.9945,2934.7,2934.6,28.22188]
[1752338845298,2.564,2934.7,2934.6,28.22188]
[1752338848001,0.9945,2935.0,2934.9,1.59401]
[1752338848204,0.68111,2935.4,2935.2,1.59394]
[1752338848205,0.9945,2935.3,2935.2,1.59394]
[1752338848404,0.9945,2935.3,2935.2,28.21174]
[1752338848405,1.86728555,2935.3,2935.2,28.21174]
[1752338848606,0.9945,2935.3,2935.2,28.21174]
[1752338851506,2.564,2935.3,2935.2,28.21174]
[1752338851705,1.6187,2935.3,2935.2,28.21174]
[1752338853304,2.564,2935.3,2935.2,28.21174]
[1752338856109,2.564,2935.3,2935.2,28.18774]
[1752338856806,2.564,2935.3,2935.2,4.80174]
[1752338857003,2.564,2935.3,2935.2,28.18374]
[1752338857209,2.564,2935.3,2935.2,27.27094]
[1752338857904,2.564,2935.3,2935.2,28.23924]
[1752338858106,2.564,2935.3,2935.2,4.85724]
[1752338858308,2.564,2935.3,2935.2,27.27094]
[1752338859612,2.564,2935.3,2935.2,28.23924]
[1752338860408,2.564,2935.3,2935.2,28.23024]
[1752338860607,2.5859,2935.6,2935.5,0.68107]
[1752338860910,2.5859,2935.6,2935.5,1.64937]
[1752338861114,2.5859,2935.6,2935.5,4.85717]
[1752338866017,2.5859,2935.6,2935.5,3.88887]
[1752338866409,2.5859,2935.6,2935.5,4.85717]
[1752338867122,3.26695,2935.6,2935.5,4.85717]
[1752338867814,2.5859,2935.6,2935.5,4.85717]
[1752338868014,2.5859,2935.6,2935.5,3.88887]
[1752338869414,2.5859,2935.6,2935.5,4.85717]
[1752338872320,2.5859,2935.6,2935.5,28.21017]
[1752338873425,3.26695,2935.6,2935.5,27.24187]
[1752338873923,2.5859,2935.6,2935.5,27.24187]
[1752338874327,3.26695,2935.6,2935.5,27.24187]
[1752338875121,3.26695,2935.6,2935.5,3.2078]
[1752338875326,4.35921582,2935.6,2935.5,3.2078]
[1752338875922,2.5859,2935.2,2935.1,26.5518]
[1752338876118,0.6596,2934.9,2934.8,0.68121]
[1752338876325,2.5859,2934.9,2934.8,24.03321]
[1752338876625,2.5859,2934.9,2934.8,25.00151]
[1752338877125,3.26711,2934.9,2934.8,25.00151]
[1752338877325,2.5859,2934.9,2934.8,25.00151]
[1752338880629,2.5859,2934.9,2934.8,26.09377582]
[1752338881028,2.5859,2934.9,2934.8,25.00151]
[1752338881322,3.26711,2934.9,2934.8,25.00151]
[1752338881729,2.5859,2934.9,2934.8,25.00151]
[1752338881930,3.26711,2934.9,2934.8,25.00151]
[1752338882425,3.26711,2934.9,2934.8,24.03321]
[1752338882630,3.26711,2934.9,2934.8,25.00151]
[1752338883126,2.5859,2934.9,2934.8,25.00151]
[1752338883333,3.26711,2934.9,2934.8,1.64951]
[1752338883534,3.26711,2934.9,2934.8,24.98551]
[1752338883933,3.26711,2934.9,2934.8,1.64951]
[1752338884134,2.5859,2934.9,2934.8,24.98451]
[1752338884635,3.26711,2934.9,2934.8,24.98451]
[1752338884834,3.26711,2934.9,2934.8,24.01621]
[1752338885030,3.26716,2934.7,2934.6,4.85736]
[1752338885235,2.5859,2934.7,2934.6,28.19136]
[1752338886136,3.26716,2934.7,2934.6,28.19136]
[1752338886332,2.5859,2934.7,2934.6,28.19136]
[1752338886641,2.5859,2934.7,2934.6,29.28802582]
[1752338887133,0.9309,2934.7,2934.6,29.29082582]
[1752338888540,1.31078,2935.1,2935.0,0.0044]
[1752338888735,1.31078,2935.1,2935.0,27.45]
[1752338889237,3.26847,2935.1,2935.0,28.13119]
[1752338890233,3.26847,2935.1,2935.0,3.2078]
[1752338890539,3.26847,2935.1,2935.0,26.5318]
[1752338891239,3.26847,2935.1,2935.0,27.21299]
[1752338891838,3.26847,2935.1,2935.0,24.00519]
[1752338892939,3.26847,2935.1,2935.0,28.12379]
[1752338893133,3.26847,2935.1,2935.0,28.12819]
[1752338893535,3.26847,2935.1,2935.0,24.92039]
[1752338893738,3.26847,2935.1,2935.0,23.324]
[1752338895041,0.68119,2935.0,2934.9,0.6812]
[1752338895239,3.26849,2935.0,2934.9,24.90001]
[1752338895639,3.26849,2935.0,2934.9,0.68121]
[1752338895844,3.26849,2935.0,2934.9,23.98821]
[1752338896343,3.26849,2935.0,2934.9,23.307]
[1752338897941,3.26849,2935.0,2934.9,23.98821]
[1752338900147,2.5873,2934.8,2934.7,10.1186]
[1752338900345,2.5873,2934.8,2934.7,33.4146]
[1752338901049,3.26854,2934.8,2934.7,34.09584]
[1752338901243,3.26854,2934.8,2934.7,28.09584]
[1752338902049,3.26854,2934.8,2934.7,29.18810582]
[1752338903748,3.26854,2934.8,2934.7,28.09586]
[1752338905156,0.6296,2934.6,2934.5,7.59208]
[1752338905356,2.5873,2934.6,2934.5,24.88308]
[1752338905553,3.26858,2934.6,2934.5,24.88308]
[1752338906158,1.31091,2934.5,2934.4,9.2078]
[1752338906459,3.26861,2934.5,2934.4,9.2078]
[1752338907657,3.26861,2934.5,2934.4,9.88913]
[1752338907955,3.26861,2934.5,2934.4,10.79993]
[1752338908656,3.26861,2934.5,2934.4,9.2078]
[1752338909358,3.26861,2934.5,2934.4,9.88913]
[1752338909657,3.26861,2934.5,2934.4,9.2078]
[1752338910057,3.26861,2934.5,2934.4,3.2078]
[1752338910255,2.5873,2934.3,2934.1,4.79998]
[1752338910455,2.5873,2934.2,2934.1,28.08798]
[1752338910958,3.26868,2934.2,2934.1,26.4958]
[1752338911157,3.26868,2934.2,2934.1,3.2078]
[1752338911659,3.26868,2934.2,2934.1,3.8892]
[1752338911956,2.2704,2934.1,2934.0,7.59221]
[1752338912156,2.5873,2934.1,2934.0,7.59221]
[1752338913359,3.2687,2934.1,2934.0,7.59221]
[1752338913559,2.5873,2934.1,2934.0,7.59221]
[1752338914957,1.9577,2934.8,2934.2,0.9108]
[1752338915158,3.26856,2934.8,2934.7,2.00306582]
[1752338915359,3.26856,2934.8,2934.7,0.9108]
[1752338915558,3.26856,2934.8,2934.7,1.59206]
[1752338915861,2.5873,2934.8,2934.7,2.68432582]
[1752338916859,1.6279,2934.8,2934.7,2.68432582]
[1752338917059,0.9983,2934.8,2934.7,2.68432582]
[1752338917564,0.9983,2934.8,2934.7,25.97732582]
[1752338920064,0.9983,2934.8,2934.7,29.18512582]
[1752338921865,0.9983,2934.8,2934.7,35.18512582]
[1752338924166,2.5611,2934.8,2934.7,34.09286]
[1752338925363,3.24234,2934.8,2934.7,34.09286]
[1752338925769,2.5611,2934.8,2934.7,34.09286]
[1752338926070,3.24234,2934.8,2934.7,34.09286]
[1752338926266,3.24234,2934.8,2934.7,10.79986]
[1752338926565,3.24234,2934.8,2934.7,34.07286]
[1752338927863,3.24234,2934.8,2934.7,28.07286]
[1752338928869,2.5611,2934.8,2934.7,29.16512582]
[1752338929068,0.9983,2934.8,2934.7,29.16512582]
[1752338929771,1.6331,2934.8,2934.7,29.16512582]
[1752338930069,2.5611,2934.8,2934.7,29.16512582]
[1752338931472,2.5611,2934.8,2934.7,4.79986]
[1752338931674,2.5611,2934.8,2934.7,28.07186]
[1752338932874,3.24234,2934.8,2934.7,28.07186]
[1752338933277,3.24234,2934.8,2934.7,3.2078]
[1752338933772,3.24234,2934.8,2934.7,3.88906]
[1752338934366,3.24234,2934.8,2934.7,3.2078]
[1752338936877,3.24234,2934.8,2934.7,3.88906]
[1752338937079,3.24234,2934.8,2934.7,3.2078]
[1752338938078,0.68126,2934.7,2934.6,0.68127]
[1752338938278,3.22926,2934.7,2934.6,3.2078]
[1752338938574,0.68131,2934.5,2934.4,6.0]
[1752338938776,4.32157582,2934.5,2934.4,6.0]
[1752338939083,2.548,2934.0,2933.9,28.10015]
[1752338939775,3.22942,2934.0,2933.9,28.10015]
[1752338940276,3.22942,2934.0,2933.9,27.4187]
[1752338940477,3.22942,2934.0,2933.9,3.2078]
[1752338940776,3.22942,2934.0,2933.9,3.88925]
[1752338941675,3.22942,2934.0,2933.9,3.2078]
[1752338941884,3.22947,2933.8,2933.7,6.0]
[1752338942084,3.22949,2933.7,2933.6,3.2078]
[1752338946186,3.22949,2933.7,2933.6,3.88932]
[1752338946878,3.22949,2933.7,2933.6,3.88931]
[1752338947081,3.22949,2933.7,2933.6,3.2078]
[1752338947281,3.22949,2933.7,2933.1,1.70406]
[1752338947282,2.5412,2933.2,2933.1,4.79343]
[1752338947585,2.5412,2933.2,2933.1,1.58563]
[1752338948186,2.5412,2933.2,2933.1,0.68163]
[1752338949186,3.22281,2933.2,2933.1,0.68163]
[1752338949989,2.5412,2933.2,2933.1,0.68163]
[1752338950290,2.5412,2933.2,2933.1,1.58563]
[1752338950489,2.5412,2933.2,2933.1,2.67789582]
[1752338950892,3.22281,2933.2,2933.1,1.58563]
[1752338951986,2.5412,2933.2,2933.1,1.58563]
[1752338952697,3.22281,2933.2,2933.1,1.58563]
[1752338952885,2.24575,2933.1,2933.0,0.68164]
[1752338953186,1.5641,2933.0,2932.8,3.2078]
[1752338953390,2.5412,2932.9,2932.8,3.88948]
[1752338953687,2.5412,2932.9,2932.8,4.79348]
[1752338953880,1.71066582,2932.9,2932.5,0.904]
[1752338954083,2.5412,2932.5,2932.4,4.1118]
[1752338954283,3.22297,2932.5,2932.4,3.2078]
[1752338954487,1.30024,2932.2,2932.1,0.68184]
[1752338954682,3.22304,2932.2,2932.1,0.68184]
[1752338954881,2.5412,2932.2,2932.1,0.68184]
[1752338955288,2.5412,2932.2,2932.1,1.58584]
[1752338955587,3.22304,2932.2,2932.1,1.58584]
[1752338955789,2.5412,2932.2,2932.1,1.58584]
[1752338956787,0.9771,2931.6,2931.5,2.89]
[1752338956988,4.1849,2931.8,2931.7,2.88996]
[1752338957288,4.1849,2931.8,2931.7,3.30032582]
[1752338957289,5.749,2931.8,2931.7,3.30032582]
[1752338957486,5.749,2931.8,2931.7,1.5261]
[1752338957683,5.749,2931.8,2931.7,2.20806]
[1752338958489,5.749,2931.8,2931.7,0.68196]
[1752338958688,5.749,2931.8,2931.7,3.30032582]
[1752338959091,4.1849,2932.1,2932.0,2.20799]
[1752338959291,4.1849,2932.1,2932.0,3.98215582]
[1752338959492,4.8033,2932.1,2932.0,2.88989]
[1752338959684,5.749,2932.1,2932.0,2.20799]
[1752338960486,3.2078,2932.1,2932.0,3.97845582]
[1752338960686,5.1306,2932.4,2932.3,1.30392]
[1752338960991,5.749,2932.4,2932.3,3.97838582]
[1752338961593,5.749,2932.4,2932.3,3.30018582]
[1752338961794,5.749,2932.4,2932.3,2.20792]
[1752338962894,4.8033,2932.4,2932.3,2.20792]
[1752338963094,4.1849,2932.4,2932.3,3.97838582]
[1752338964692,2.5412,2932.7,2932.6,2.88605]
[1752338964895,0.9771,2932.7,2932.6,3.97831582]
[1752338965791,1.5955,2932.7,2932.6,3.97831582]
[1752338966097,2.5412,2932.7,2932.6,3.97831582]
[1752338966596,2.5412,2932.7,2932.6,2.88605]
[1752338967496,0.9457,2933.0,2932.7,0.68172]
[1752338967803,2.5412,2933.0,2932.9,3.97824582]
[1752338968390,2.5412,2933.0,2932.9,2.88598]
[1752338969091,2.5412,2933.0,2932.9,2.20778]
[1752338970300,2.5412,2933.0,2932.9,2.88598]
[1752338971698,3.2078,2933.1,2933.0,2.88595]
[1752338972005,0.6184,2933.4,2933.3,3.13758]
[1752338972298,1.5641,2933.4,2933.3,6.34538]
[1752338973898,2.5412,2933.4,2933.3,6.34538]
[1752338974098,2.5412,2933.4,2933.3,3.13758]
[1752338975206,2.5412,2933.4,2933.3,9.13758]
[1752338977203,2.5412,2933.4,2933.3,12.34538]
[1752338977706,2.5412,2933.4,2933.3,9.13758]
[1752338978399,2.5412,2933.4,2933.3,6.68158]
[1752338979804,2.5412,2933.4,2933.3,9.26278]
[1752338980006,3.2078,2934.0,2933.8,0.668]
[1752338980007,2.5439,2933.9,2933.8,0.668]
[1752338980302,2.5439,2933.9,2933.8,3.26267]
[1752338981509,0.6325,2933.9,2933.8,3.26267]
[1752338981709,2.5439,2933.9,2933.8,3.26267]
[1752338985207,3.22535,2933.9,2933.8,3.26267]
[1752338985806,2.5439,2933.9,2933.8,3.26267]
[1752338986205,1.31399,2933.8,2933.7,0.68147]
[1752338986402,4.31765582,2933.8,2933.7,0.68147]
[1752338986710,3.22541,2933.6,2933.5,6.0]
[1752338986899,3.22541,2933.6,2933.0,4.55745]
[1752338986900,2.5439,2933.1,2933.0,4.55745]
[1752338987208,2.5439,2933.1,2933.0,6.47065]
[1752338987403,2.5439,2933.1,2933.0,5.52925]
[1752338988001,0.6325,2933.3,2933.2,0.668]
[1752338988207,2.5439,2933.3,2933.2,3.26281]
[1752338989006,3.22548,2933.3,2933.2,3.26281]
[1752338989806,0.9592,2933.3,2933.2,3.26281]
[1752338990014,3.22545,2933.5,2933.4,2.29096]
[1752338990212,3.22545,2933.5,2933.4,3.26276]
[1752338991117,1.31413,2933.2,2933.1,1.3496]
[1752338991310,2.5439,2933.2,2933.1,3.2628]
[1752338991706,3.22551,2933.2,2933.1,3.2628]
[1752338993917,3.22551,2933.2,2933.1,3.26283]
[1752338994118,3.22551,2933.2,2933.1,1.34963]
[1752338994819,1.31415,2933.1,2933.0,0.668]
[1752338995016,3.22555,2933.1,2933.0,0.668]
[1752338995815,3.22555,2933.1,2933.0,1.34964]
[1752338996008,0.68165,2933.0,2932.9,0.68167]
[1752338996215,2.5439,2932.9,2932.8,0.68168]
[1752338996421,3.63616582,2932.9,2932.8,0.68168]
[1752338996922,0.68174,2932.7,2932.6,4.86132]
[1752338997111,3.22564,2932.7,2932.6,3.26292]
[1752338998623,3.22564,2932.7,2932.6,1.34972]
[1752338999621,4.31790582,2932.7,2932.6,1.34972]
[1752339000317,0.6325,2932.6,2932.5,1.34977]
[1752339000516,1.5917,2932.6,2932.5,1.34977]
[1752339000722,2.5439,2932.6,2932.5,1.34977]
[1752339001718,2.5439,2932.6,2932.5,3.26297]
[1752339001926,2.5439,2933.0,2932.9,1.34967]
[1752339002123,3.22555,2933.0,2932.9,0.668]
[1752339003617,0.6817,2932.8,2932.7,0.68171]
[1752339003924,4.31786582,2932.8,2932.7,0.668]
[1752339004124,4.31786582,2932.8,2932.7,1.34972]
[1752339004818,4.31786582,2932.8,2932.7,0.668]
[1752339005019,2.26642,2932.7,2932.6,0.68173]
[1752339005323,3.22562,2932.7,2932.6,0.68173]
[1752339007222,3.22562,2932.7,2932.6,1.34973]
[1752339007622,2.5439,2932.7,2932.6,1.34973]
[1752339007824,3.22562,2932.7,2932.6,3.26013]
[1752339009828,2.5439,2932.7,2932.6,3.26013]
[1752339010022,3.22562,2932.7,2932.6,3.26013]
[1752339013328,2.5439,2932.7,2932.6,3.26013]
[1752339013528,3.22562,2932.7,2932.6,3.26013]
[1752339015723,3.22562,2932.7,2932.6,2.34023]
[1752339020131,3.22562,2932.7,2932.6,0.668]
[1752339020630,3.22562,2932.7,2932.6,0.67042769]
[1752339021227,3.22562,2932.7,2932.6,1.35217769]
[1752339021532,3.22562,2932.7,2932.6,2.34267769]
[1752339021728,3.22562,2932.7,2932.6,3.26257769]
[1752339021928,3.22562,2932.7,2932.6,2.34267769]
[1752339022128,3.22562,2932.7,2932.6,1.35217769]
[1752339023334,3.22562,2932.7,2932.6,0.67042769]
[1752339023733,3.22562,2932.7,2932.6,1.35217769]
[1752339023933,3.22562,2932.7,2932.6,3.26257769]
[1752339024437,3.22562,2932.7,2932.6,2.34267769]
[1752339024934,3.22562,2932.7,2932.6,0.67042769]
[1752339025934,3.22562,2932.7,2932.6,1.35217769]
[1752339026134,3.22562,2932.7,2932.6,0.67042769]
[1752339026539,4.12424247,2932.7,2932.6,0.67042769]
[1752339030846,4.12424247,2932.7,2932.6,3.26257769]
[1752339031148,4.12424247,2932.7,2932.6,0.67042769]
[1752339031448,3.17494,2932.2,2932.1,2.5673]
[1752339031638,4.26720582,2932.2,2932.1,2.5673]
[1752339031943,5.16604928,2932.2,2932.1,2.5673]
[1752339032139,4.26720582,2932.2,2932.1,2.5673]
[1752339032744,2.4931,2932.2,2932.1,3.24916]
[1752339032949,3.17491,2932.4,2932.3,2.5673]
[1752339033147,4.07325968,2932.4,2932.3,0.6569]
[1752339033947,3.17494,2932.2,2932.1,0.6569]
[1752339034250,4.26720582,2932.2,2932.1,0.6569]
[1752339034447,3.17501,2931.9,2931.8,3.2078]
[1752339034651,4.26727582,2931.9,2931.8,0.6569]
[1752339034854,3.17506,2931.7,2931.6,0.6569]
[1752339035148,4.26732582,2931.7,2931.6,0.6569]
[1752339035759,1.8838,2931.1,2930.9,0.9905]
[1752339035945,2.38368582,2931.0,2930.9,1.6474]
[1752339036149,4.23688582,2931.0,2930.9,1.6474]
[1752339036554,4.23688582,2931.0,2930.9,2.5615]
[1752339036851,4.23688582,2931.0,2930.9,1.6474]
[1752339037651,3.2078,2931.4,2930.9,3.65376582]
[1752339037846,3.09909,2931.2,2931.1,2.496]
[1752339038443,3.09909,2931.2,2930.6,0.9141]
[1752339038444,0.6074,2930.9,2930.6,0.9141]
[1752339038649,4.19144582,2930.8,2930.7,2.26409]
[1752339038848,4.19144582,2930.8,2930.7,3.17819]
[1752339039049,3.50926582,2930.8,2930.7,0.68219]
[1752339039252,0.68226,2930.4,2930.3,0.9387]
[1752339039451,4.19152582,2930.4,2930.3,0.6432]
[1752339039647,3.50926582,2930.4,2930.3,0.6432]
[1752339039853,0.6074,2930.4,2930.3,6.38608]
[1752339040056,2.417,2930.6,2930.5,1.32544]
[1752339040255,2.417,2930.6,2930.5,3.17824]
[1752339040455,1.8096,2930.5,2930.4,0.68225]
[1752339040661,2.417,2930.5,2930.4,3.17825]
[1752339041459,0.6074,2930.5,2930.4,3.17825]
[1752339041855,2.417,2930.5,2930.4,3.17825]
[1752339042853,4.19150582,2930.5,2930.4,1.5819]
[1752339043060,3.50926582,2930.5,2930.4,2.26416]
[1752339043259,4.19150582,2930.5,2930.4,0.6432]
[1752339043959,4.19150582,2930.5,2930.4,1.32546]
[1752339044158,4.19150582,2930.5,2930.4,0.6432]
[1752339044559,4.19150582,2930.5,2930.4,1.32546]
[1752339045156,4.19150582,2930.5,2930.4,0.6432]
[1752339045356,4.19150582,2930.5,2930.4,1.32546]
[1752339045659,4.19150582,2930.5,2930.4,0.6432]
[1752339046365,1.28968,2930.3,2930.2,0.6432]
[1752339046663,3.50926582,2930.3,2930.2,3.17831]
[1752339047264,4.19154582,2930.3,2930.2,2.496]
[1752339047563,2.417,2930.3,2930.2,3.17831]
[1752339048061,2.417,2930.5,2930.4,2.496]
[1752339048259,2.417,2930.5,2930.4,3.17826]
[1752339048462,2.417,2930.9,2930.8,2.23947]
[1752339048658,1.5084,2930.8,2930.7,1.5573]
[1752339048863,2.417,2930.8,2930.7,2.26409]
[1752339049060,2.417,2931.0,2930.9,3.17814]
[1752339049255,3.09912,2931.0,2930.9,2.496]
[1752339049460,4.19138582,2931.0,2930.9,1.5819]
[1752339049663,4.19138582,2931.0,2930.9,0.6432]
[1752339050261,4.19138582,2931.0,2930.9,2.496]
[1752339051065,4.19138582,2931.0,2930.9,3.17814]
[1752339051262,4.19138582,2931.0,2930.9,0.6432]
[1752339051666,3.09919,2930.7,2930.6,3.851]
[1752339052159,0.68216,2930.9,2930.8,0.68217]
[1752339052364,3.09916,2930.9,2930.8,3.17817]
[1752339053364,1.09226582,2931.1,2930.6,3.2078]
[1752339053365,2.417,2931.1,2931.0,2.496]
[1752339053661,3.0991,2931.1,2931.0,3.17812]
[1752339053867,3.0991,2931.1,2931.0,2.496]
[1752339054063,3.0991,2931.1,2931.0,3.17812]
[1752339054268,2.417,2931.1,2931.0,3.17812]
[1752339054464,1.28949,2931.2,2931.1,3.1781]
[1752339054671,3.09909,2931.2,2931.1,3.1781]
[1752339055966,3.09909,2931.2,2931.1,2.496]
[1752339056272,4.19135582,2931.2,2931.1,2.496]
[1752339057965,4.19135582,2931.2,2931.1,0.6432]
[1752339058165,2.417,2930.8,2930.7,0.68217]
[1752339058369,2.417,2930.8,2930.3,3.17828]
[1752339058370,2.417,2930.4,2930.3,3.17828]
[1752339058670,3.50926582,2930.4,2930.3,3.17828]
[1752339058866,4.19152582,2930.4,2930.3,2.496]
[1752339059466,4.19152582,2930.4,2930.3,3.17828]
[1752339059668,3.50926582,2930.4,2930.3,3.17828]
[1752339059864,3.89005,2930.5,2930.4,0.68226]
[1752339060171,0.68226,2930.4,2930.3,2.26417]
[1752339060371,0.68226,2930.4,2930.3,1.5819]
[1752339060572,3.09926,2930.4,2930.3,2.496]
[1752339061062,3.09926,2930.4,2930.3,3.17828]
[1752339061261,3.09926,2930.4,2930.3,2.496]
[1752339061773,4.19152582,2930.4,2930.3,3.17828]
[1752339062873,4.19152582,2930.4,2930.3,2.496]
[1752339064668,4.19152582,2930.4,2930.3,3.17828]
[1752339068370,3.09926,2930.4,2930.3,3.17828]
[1752339073980,3.09926,2930.4,2930.3,2.496]
[1752339074183,0.6604,2930.2,2930.1,0.68232]
[1752339074384,2.5556,2930.2,2930.1,2.25042]
[1752339074581,3.64786582,2930.2,2930.1,3.23682]
[1752339075583,4.33021582,2930.2,2930.1,3.23683]
[1752339076980,3.23795,2930.2,2930.1,3.23683]
[1752339077780,1.3428,2929.9,2929.8,0.6554]
[1752339077981,3.238,2929.9,2929.8,2.5545]
[1752339078381,3.238,2929.9,2929.8,0.6554]
[1752339079082,1.34282,2929.7,2929.6,3.23694]
[1752339079281,3.23802,2929.7,2929.6,2.5545]
[1752339079483,3.23802,2929.7,2929.6,3.23695]
[1752339079983,3.23802,2929.7,2929.6,0.68245]
[1752339080182,3.23802,2929.7,2929.6,1.33785]
[1752339080782,3.23807,2929.6,2929.5,0.6554]
[1752339080987,7.53813582,2929.6,2929.5,0.6554]
[1752339081182,0.68249,2929.4,2929.3,0.6825]
[1752339081387,3.23809,2929.4,2929.3,2.3243]
[1752339081583,3.23809,2929.4,2929.3,3.237]
[1752339082478,4.33035582,2929.4,2929.3,2.5545]
[1752339082683,4.33035582,2929.4,2929.3,0.6554]
[1752339082883,0.9018,2929.3,2929.1,0.68255]
[1752339083082,0.68258,2929.1,2929.0,0.68257]
[1752339083285,2.5556,2929.1,2929.0,0.68257]